bitfinex/quotes_SOLUSD_20250413
["timestamp","ask_amount","ask_price","bid_price","bid_amount"]
[1744587695808,45.53234728,127.6,127.59,0.063]
[1744587698912,44.933972,127.58,127.57,0.063]
[1744587699101,65.26284728,127.58,127.57,0.063]
[1744587701427,71.53334728,127.58,127.57,0.063]
[1744587707096,46.18671371,127.58,127.57,0.063]
[1744587707296,26.0,127.58,127.57,0.063]
[1744587707516,71.53334728,127.58,127.57,0.063]
[1744587710712,71.53334728,127.58,127.56,0.063]
[1744587710713,44.79181043,127.54,127.53,0.03]
[1744587710919,72.68284728,127.54,127.53,0.03]
[1744587713426,78.95534728,127.54,127.53,0.03]
[1744587714008,33.42,127.54,127.53,0.03]
[1744587714213,78.67102414,127.54,127.53,0.03]
[1744587714409,78.95534728,127.54,127.53,0.03]
[1744587715209,71.39970095,127.54,127.53,0.03]
[1744587722833,19.07613357,127.53,127.52,0.063]
[1744587723126,19.07613357,127.49,127.48,0.03]
[1744587723334,39.12720095,127.49,127.48,0.03]
[1744587725235,45.40220095,127.49,127.48,0.03]
[1744587726832,45.26003938,127.49,127.48,0.03]
[1744587727010,45.11787781,127.49,127.48,0.03]
[1744587727210,45.26003938,127.49,127.48,0.03]
[1744587727415,45.40220095,127.49,127.48,0.03]
[1744587728544,0.28432314,127.48,127.47,0.03]
[1744587728833,37.98260095,127.48,127.47,0.03]
[1744587729032,18.933972,127.48,127.47,0.03]
[1744587729226,26.32626738,127.49,127.47,0.03]
[1744587729529,13.6952,127.49,127.47,0.03]
[1744587729732,31.70720095,127.48,127.47,0.03]
[1744587730429,114.60720095,127.48,127.47,0.03]
[1744587730831,120.88260095,127.48,127.47,0.03]
[1744587733032,101.54964886,127.48,127.47,0.03]
[1744587733239,114.18071624,127.48,127.47,0.03]
[1744587733417,114.46503938,127.48,127.47,0.03]
[1744587733617,101.54964886,127.48,127.47,0.03]
[1744587733829,18.64964886,127.48,127.47,0.03]
[1744587734039,18.933972,127.48,127.47,0.03]
[1744587734643,24.92504886,127.48,127.47,0.03]
[1744587734950,7.42,127.49,127.47,0.03]
[1744587735450,7.42,127.49,127.47,12.66106738]
[1744587736555,90.7434,127.56,127.48,12.63106738]
[1744587736730,82.9,127.56,127.51,12.63106738]
[1744587737053,7.42,127.55,127.51,12.63106738]
[1744587737848,13.6923,127.55,127.51,18.90496738]
[1744587738041,7.42,127.55,127.52,12.63106738]
[1744587738430,7.42,127.55,127.51,18.90496738]
[1744587739349,7.42,127.55,127.52,12.63106738]
[1744587739849,7.42,127.55,127.51,18.90496738]
[1744587740030,7.42,127.55,127.52,12.63106738]
[1744587740847,7.42,127.55,127.51,18.90496738]
[1744587741832,31.56503938,127.53,127.48,12.63106738]
[1744587742031,18.933972,127.51,127.47,20.46386738]
[1744587742231,31.56503938,127.51,127.47,1.557]
[1744587742943,12.63106738,127.51,127.47,14.18806738]
[1744587743145,12.63106738,127.52,127.48,12.63106738]
[1744587743350,12.63106738,127.52,127.47,20.46396738]
[1744587743828,18.90466738,127.52,127.47,20.46396738]
[1744587744751,12.63106738,127.51,127.47,7.8329]
[1744587744953,12.63106738,127.52,127.47,20.46396738]
[1744587745151,18.64964886,127.54,127.49,12.63106738]
[1744587745362,31.28071624,127.54,127.47,7.8329]
[1744587745565,31.28071624,127.54,127.49,12.63106738]
[1744587745862,7.42,127.55,127.51,12.63106738]
[1744587746856,7.42,127.55,127.51,18.90486738]
[1744587747256,20.05106738,127.55,127.51,6.2738]
[1744587747436,12.63106738,127.53,127.49,12.63106738]
[1744587747834,12.63106738,127.53,127.48,12.63106738]
[1744587748550,12.63106738,127.53,127.48,18.90646738]
[1744587748737,12.63106738,127.53,127.49,12.63106738]
[1744587748942,37.83783938,127.54,127.49,12.63106738]
[1744587749858,37.83783938,127.54,127.5,6.2745]
[1744587750336,7.42,127.55,127.51,12.63106738]
[1744587750538,7.42,127.55,127.52,12.63106738]
[1744587751253,7.42,127.55,127.51,12.63106738]
[1744587751550,7.42,127.55,127.52,12.63106738]
[1744587751759,7.42,127.55,127.51,12.63106738]
[1744587751947,7.42,127.55,127.51,18.90476738]
[1744587752338,26.32316738,127.55,127.5,12.63106738]
[1744587752643,12.63106738,127.54,127.49,12.63106738]
[1744587752842,12.63106738,127.53,127.48,12.63106738]
[1744587753050,12.63106738,127.54,127.49,12.63106738]
[1744587753556,12.63106738,127.54,127.47,20.46376738]
[1744587753557,12.63106738,127.52,127.47,20.46376738]
[1744587753858,12.63106738,127.53,127.48,12.63106738]
[1744587754040,31.56503938,127.52,127.47,1.557]
[1744587754238,31.56503938,127.52,127.47,20.46386738]
[1744587754962,12.91539052,127.52,127.47,20.46386738]
[1744587755355,19.18919052,127.52,127.47,20.46386738]
[1744587755552,12.63106738,127.51,127.47,1.557]
[1744587755939,12.63106738,127.51,127.47,7.8329]
[1744587756242,19.18919052,127.52,127.47,20.46396738]
[1744587757362,18.90506738,127.51,127.47,7.8329]
[1744587757659,18.90506738,127.51,127.47,1.557]
[1744587757855,18.90506738,127.51,127.47,0.03]
[1744587757856,12.63106738,127.49,127.47,0.03]
[1744587758070,24.92364886,127.51,127.47,0.03]
[1744587758071,31.56503938,127.48,127.47,0.03]
[1744587758368,31.70720095,127.48,127.47,0.03]
[1744587759067,25.56863357,127.47,127.46,0.03]
[1744587759271,38.19970095,127.47,127.46,0.03]
[1744587759468,44.47560095,127.47,127.46,0.03]
[1744587763746,26.0,127.45,127.44,0.03]
[1744587764055,44.79181043,127.42,127.41,0.03]
[1744587764365,57.70720095,127.42,127.41,0.03]
[1744587766166,63.98560095,127.42,127.41,0.03]
[1744587766660,67.95046777,127.42,127.41,0.03]
[1744587766862,26.14216157,127.36,127.35,0.03]
[1744587767062,46.47755209,127.36,127.35,0.03]
[1744587767263,65.12720095,127.36,127.35,0.03]
[1744587767760,77.75826833,127.36,127.35,0.0001]
[1744587768146,108.25803357,127.35,127.26,14.29596738]
[1744587768347,31.70720095,127.34,127.26,1.6649]
[1744587768548,18.64964886,127.28,127.26,1.6649]
[1744587768749,7.42,127.29,127.27,12.63106738]
[1744587768948,7.42,127.29,127.26,20.58226738]
[1744587769164,7.42,127.29,127.26,28.22481166]
[1744587769664,7.42,127.29,127.26,1.6649]
[1744587769971,7.42,127.29,127.26,21.93851166]
[1744587770262,39.20758366,127.28,127.22,7.8676]
[1744587770469,20.27361166,127.27,127.23,20.27361166]
[1744587770965,20.27361166,127.26,127.22,28.14121166]
[1744587771180,20.27361166,127.27,127.22,7.8676]
[1744587771369,20.27361166,127.27,127.23,20.27361166]
[1744587772160,20.27361166,127.27,127.23,26.56111166]
[1744587772572,39.34974523,127.26,127.22,1.6649]
[1744587772746,20.27361166,127.24,127.2,26.56271166]
[1744587772951,46.27361166,127.25,127.2,26.56271166]
[1744587773547,20.27361166,127.24,127.19,6.2898]
[1744587773753,46.27361166,127.25,127.2,20.27361166]
[1744587773945,18.64964886,127.27,127.19,6.2898]
[1744587774147,18.64964886,127.27,127.22,6.2878]
[1744587774347,20.70009637,127.26,127.18,7.8676]
[1744587774547,18.64964886,127.25,127.21,20.27361166]
[1744587774947,20.5579348,127.26,127.22,20.27361166]
[1744587775146,20.27361166,127.26,127.22,20.27361166]
[1744587775349,27.69361166,127.29,127.24,20.27361166]
[1744587775557,7.42,127.29,127.25,20.27361166]
[1744587775757,7.42,127.29,127.27,20.27361166]
[1744587775963,269.4,127.32,127.28,20.27361166]
[1744587777369,20.27361166,127.31,127.27,20.27361166]
[1744587777567,289.67361166,127.32,127.27,20.27361166]
[1744587777761,20.27361166,127.31,127.27,20.27361166]
[1744587777967,20.5579348,127.3,127.25,21.93851166]
[1744587778548,20.5579348,127.3,127.24,6.2027]
[1744587778549,18.64964886,127.27,127.23,20.27361166]
[1744587778773,20.27361166,127.26,127.22,1.6649]
[1744587779272,20.27361166,127.25,127.21,6.2886]
[1744587780160,26.56051166,127.25,127.2,32.76551166]
[1744587780361,20.27361166,127.25,127.2,32.76551166]
[1744587780561,26.56041166,127.25,127.2,32.76551166]
[1744587780958,20.5579348,127.26,127.21,20.27361166]
[1744587781157,18.64964886,127.27,127.2,12.4919]
[1744587781472,45.20916052,127.27,127.22,20.27361166]
[1744587782371,38.92326052,127.27,127.22,26.56151166]
[1744587782755,20.27361166,127.27,127.22,26.56151166]
[1744587783156,20.27361166,127.26,127.21,26.56221166]
[1744587784168,20.27361166,127.24,127.2,26.56271166]
[1744587784372,20.5579348,127.25,127.2,26.56271166]
[1744587785078,20.27361166,127.25,127.2,26.56271166]
[1744587785262,24.93634886,127.26,127.21,20.27361166]
[1744587785263,38.92326052,127.26,127.21,20.27361166]
[1744587785664,26.8439348,127.27,127.22,20.27361166]
[1744587785865,27.69361166,127.28,127.23,20.27361166]
[1744587786069,7.42,127.28,127.24,20.27361166]
[1744587786285,33.97891166,127.28,127.2,104.6123]
[1744587786482,33.97891166,127.28,127.23,26.56091166]
[1744587787502,20.27361166,127.26,127.22,26.56161166]
[1744587788092,20.27361166,127.27,127.22,26.56161166]
[1744587788980,20.27361166,127.27,127.2,98.3232]
[1744587788981,20.27361166,127.24,127.19,1.6649]
[1744587789162,20.27361166,127.21,127.17,82.6]
[1744587789364,20.27361166,127.21,127.17,6.2905]
[1744587789588,46.27361166,127.22,127.17,26.56411166]
[1744587790080,20.27361166,127.21,127.17,6.2905]
[1744587790272,20.27361166,127.21,127.17,26.56411166]
[1744587790790,20.27361166,127.21,127.17,25.06411166]
[1744587790972,46.27361166,127.22,127.17,25.06411166]
[1744587791372,20.27361166,127.21,127.17,25.06411166]
[1744587791577,32.2884,127.22,127.17,25.06411166]
[1744587791578,26.0,127.22,127.17,25.06411166]
[1744587791777,46.27361166,127.22,127.17,25.06411166]
[1744587792582,34.00161166,127.23,127.18,20.27361166]
[1744587792787,20.27361166,127.21,127.16,6.3212]
[1744587792965,26.56261166,127.21,127.16,26.59481166]
[1744587793169,20.27361166,127.2,127.16,26.59481166]
[1744587795081,26.56291166,127.2,127.16,6.3212]
[1744587795492,26.56261166,127.21,127.16,6.3212]
[1744587795698,20.27361166,127.21,127.16,26.59481166]
[1744587795867,26.8462348,127.22,127.17,20.27361166]
[1744587796479,26.8462348,127.22,127.16,6.3212]
[1744587796680,26.8462348,127.22,127.17,20.27361166]
[1744587796878,7.44,127.23,127.19,20.27361166]
[1744587797082,7.44,127.23,127.2,26.56261166]
[1744587797275,7.44,127.23,127.19,26.56311166]
[1744587797476,20.27361166,127.21,127.16,102.90361166]
[1744587797685,20.27361166,127.21,127.16,20.30361166]
[1744587798068,27.71361166,127.23,127.19,20.27361166]
[1744587798286,7.44,127.23,127.19,20.27361166]
[1744587799295,7.44,127.23,127.19,26.56321166]
[1744587799495,7.44,127.23,127.2,20.27361166]
[1744587800396,128.10976052,127.26,127.21,20.27361166]
[1744587800573,20.27361166,127.25,127.21,20.27361166]
[1744587801209,20.27361166,127.25,127.21,6.2888]
[1744587801781,101.54964886,127.26,127.21,26.56241166]
[1744587801982,13.705,127.29,127.24,20.27361166]
[1744587802181,13.705,127.29,127.22,1.6548]
[1744587802182,20.27361166,127.27,127.22,1.6548]
[1744587802376,20.27361166,127.26,127.22,21.92841166]
[1744587802788,20.27361166,127.27,127.22,21.92841166]
[1744587803303,26.55961166,127.27,127.22,28.21651166]
[1744587804185,20.27361166,127.26,127.21,26.56221166]
[1744587804489,6.286,127.27,127.23,20.27361166]
[1744587805104,26.55911166,127.28,127.23,20.27361166]
[1744587805291,26.55911166,127.28,127.23,26.56111166]
[1744587807203,18.96448912,127.28,127.23,12.67898912]
[1744587807391,37.61413798,127.28,127.23,12.67898912]
[1744587807901,13.705,127.29,127.24,12.67898912]
[1744587808099,26.38398912,127.29,127.24,12.67898912]
[1744587808404,12.67898912,127.28,127.23,12.67898912]
[1744587809285,18.96438912,127.28,127.23,18.96638912]
[1744587810898,12.67898912,127.26,127.22,6.2881]
[1744587811586,12.67898912,127.27,127.22,18.96708912]
[1744587812911,12.67898912,127.26,127.22,6.2881]
[1744587813106,12.67898912,127.25,127.19,1.6548]
[1744587813410,12.67898912,127.25,127.2,12.67898912]
[1744587813589,12.96331226,127.26,127.21,12.67898912]
[1744587813796,31.61296112,127.26,127.21,12.67898912]
[1744587814299,31.61296112,127.26,127.22,6.2883]
[1744587814795,37.89926112,127.26,127.21,18.96748912]
[1744587816221,7.42,127.28,127.24,12.67898912]
[1744587816621,31.32863798,127.27,127.22,12.67898912]
[1744587817222,20.09898912,127.28,127.23,12.67898912]
[1744587817393,7.42,127.28,127.24,12.67898912]
[1744587818421,6.2836,127.32,127.26,12.67898912]
[1744587818599,6.2836,127.32,127.27,12.67898912]
[1744587818799,18.96258912,127.32,127.27,12.67898912]
[1744587819099,12.67898912,127.32,127.27,12.67898912]
[1744587819716,7.483,127.33,127.25,1.5129]
[1744587820013,12.67898912,127.31,127.26,15.58479132]
[1744587820515,12.67898912,127.31,127.27,6.2858]
[1744587821221,12.67898912,127.31,127.27,18.96478912]
[1744587822200,18.96238912,127.32,127.27,18.96478912]
[1744587822815,37.61203798,127.32,127.27,18.96478912]
[1744587823196,12.67898912,127.31,127.27,6.2858]
[1744587824516,31.75512269,127.3,127.25,7.7995]
[1744587824820,12.67898912,127.29,127.25,7.7995]
[1744587825215,12.67898912,127.3,127.26,12.67898912]
[1744587825415,12.67898912,127.31,127.26,12.67898912]
[1744587826019,12.67898912,127.3,127.26,6.2861]
[1744587826522,12.67898912,127.27,127.22,1.5129]
[1744587826816,12.67898912,127.27,127.22,14.19188912]
[1744587827401,20.09898912,127.28,127.23,18.96658912]
[1744587827607,26.38458912,127.28,127.23,18.96658912]
[1744587827842,7.42,127.28,127.23,18.96658912]
[1744587828029,20.09898912,127.28,127.23,18.96658912]
[1744587828235,7.42,127.28,127.25,12.67898912]
[1744587828422,33.42,127.28,127.25,12.67898912]
[1744587829434,33.42,127.28,127.25,18.96548912]
[1744587829915,7.42,127.28,127.25,18.96548912]
[1744587831651,32.41564886,127.33,127.27,12.67898912]
[1744587831952,32.41564886,127.33,127.29,12.67898912]
[1744587832241,12.67898912,127.32,127.27,12.67898912]
[1744587832638,45.09463798,127.33,127.28,6.2853]
[1744587835637,25.217372,127.32,127.26,12.4851]
[1744587835821,37.89636112,127.32,127.27,12.67898912]
[1744587836723,37.89636112,127.32,127.27,18.96458912]
[1744587836930,25.217372,127.32,127.27,18.96458912]
[1744587837123,25.217372,127.32,127.28,12.67898912]
[1744587837322,25.217372,127.32,127.27,18.96458912]
[1744587841744,25.217372,127.32,127.28,18.96428912]
[1744587842251,0.063,127.33,127.31,12.67898912]
[1744587842453,0.063,127.33,127.32,12.67898912]
[1744587842623,0.063,127.33,127.29,1.5851]
[1744587842944,0.063,127.33,127.3,12.67898912]
[1744587843132,0.063,127.33,127.29,12.67898912]
[1744587843335,12.74198912,127.33,127.28,18.96428912]
[1744587843534,12.67898912,127.32,127.28,6.2853]
[1744587843742,12.74198912,127.33,127.28,18.96428912]
[1744587844445,19.02488912,127.33,127.28,18.96428912]
[1744587844743,6.3459,127.33,127.28,18.96428912]
[1744587844945,0.063,127.33,127.3,12.67898912]
[1744587845255,0.063,127.33,127.31,12.67898912]
[1744587845830,0.063,127.33,127.26,22.14396157]
[1744587845831,0.063,127.33,127.32,12.67898912]
[1744587847436,0.063,127.33,127.32,18.96228912]
[1744587856658,0.063,127.33,127.32,21.85489059]
[1744587858854,0.063,127.38,127.32,37.70545216]
[1744587859162,0.063,127.38,127.37,12.67898912]
[1744587859739,0.063,127.38,127.36,12.67898912]
[1744587861158,0.063,127.38,127.36,18.96008912]
[1744587864535,18.64964886,127.36,127.3,18.96328912]
[1744587864740,12.67898912,127.34,127.3,6.2843]
[1744587865563,25.10634886,127.36,127.3,18.96328912]
[1744587865755,12.67898912,127.35,127.3,18.96328912]
[1744587866659,18.96098912,127.35,127.3,18.96328912]
[1744587868163,12.67898912,127.35,127.31,12.67898912]
[1744587869439,18.96108912,127.35,127.31,12.67898912]
[1744587870260,12.67898912,127.35,127.31,18.96258912]
[1744587870463,18.96088912,127.35,127.31,18.96258912]
[1744587870758,6.2819,127.35,127.31,18.96258912]
[1744587871155,6.4567,127.36,127.32,12.67898912]
[1744587871363,6.4567,127.36,127.33,12.67898912]
[1744587871968,6.4567,127.36,127.32,12.67898912]
[1744587872343,6.4567,127.36,127.33,6.2828]
[1744587872538,24.99324886,127.38,127.33,18.96178912]
[1744587873065,0.063,127.38,127.37,12.67898912]
[1744587874577,0.063,127.38,127.37,18.95988912]
[1744587875765,0.063,127.38,127.37,21.85632812]
[1744587877570,0.063,127.38,127.37,18.95988912]
[1744587879487,0.063,127.38,127.37,21.85572571]
[1744587879976,0.063,127.38,127.37,6.2809]
[1744587880484,0.063,127.38,127.37,18.95988912]
[1744587884656,0.063,127.39,127.37,18.95988912]
[1744587884863,0.063,127.39,127.38,12.67898912]
[1744587885575,0.063,127.39,127.38,15.57506611]
[1744587886372,0.063,127.39,127.38,21.85546611]
[1744587889256,0.063,127.39,127.38,9.17647699]
[1744587889755,0.063,127.39,127.38,6.2804]
[1744587891786,0.063,127.39,127.37,12.64949502]
[1744587891971,0.063,127.39,127.38,12.64949502]
[1744587892358,0.063,127.39,127.37,12.64949502]
[1744587892964,0.063,127.39,127.37,18.93029502]
[1744587894680,0.063,127.39,127.38,12.64949502]
[1744587895889,0.063,127.39,127.38,15.54515225]
[1744587896990,0.063,127.39,127.38,21.82555225]
[1744587900482,0.0001,127.39,127.38,21.96771382]
[1744587900794,0.0001,127.39,127.38,21.82555225]
[1744587901490,0.0001,127.39,127.38,2.89565723]
[1744587902001,0.0001,127.39,127.36,18.93059502]
[1744587902973,0.0001,127.39,127.35,18.93119502]
[1744587903174,6.5575,127.39,127.35,18.93119502]
[1744587904175,6.5575,127.39,127.36,12.64949502]
[1744587904690,8.0994,127.39,127.33,6.2824]
[1744587904880,20.74889502,127.39,127.34,12.64949502]
[1744587905192,12.64949502,127.38,127.33,18.93189502]
[1744587905383,27.02879502,127.39,127.34,12.64949502]
[1744587906276,8.0994,127.39,127.36,12.64949502]
[1744587906593,8.0994,127.39,127.37,12.64949502]
[1744587906795,0.0001,127.39,127.38,12.64949502]
[1744587907495,0.0001,127.39,127.38,12.79165659]
[1744587907672,0.0001,127.39,127.38,12.64949502]
[1744587908196,0.0001,127.39,127.38,15.54049025]
[1744587908397,0.0001,127.39,127.38,21.82089025]
[1744587908807,0.0001,127.39,127.38,18.92989502]
[1744587909177,0.0001,127.39,127.38,19.07205659]
[1744587910298,0.0001,127.39,127.38,21.96291732]
[1744587910491,0.063,127.42,127.39,0.14216157]
[1744587910676,0.063,127.42,127.41,12.64949502]
[1744587911397,0.063,127.42,127.41,15.54035575]
[1744587912589,0.063,127.44,127.41,39.15655575]
[1744587912904,0.063,127.44,127.43,12.64949502]
[1744587913791,0.063,127.44,127.43,15.54035575]
[1744587914805,0.063,127.44,127.43,21.81825575]
[1744587916101,0.063,127.44,127.43,15.54035575]
[1744587916285,0.063,127.44,127.43,2.89086073]
[1744587916485,0.063,127.44,127.42,12.64949502]
[1744587917008,0.063,127.44,127.43,12.64949502]
[1744587919608,0.063,127.44,127.43,18.92739502]
[1744587922515,0.063,127.44,127.43,12.64949502]
[1744587924405,0.063,127.44,127.43,18.92739502]
[1744587927318,0.063,127.44,127.43,14.36549678]
[1744587935026,26.063,127.44,127.39,7.4]
[1744587935222,26.73724564,127.42,127.37,6.2809]
[1744587935450,14.26909678,127.38,127.36,0.03]
[1744587936550,27.02156878,127.37,127.36,0.03]
[1744587936843,8.37191992,127.37,127.36,0.03]
[1744587937025,14.26909678,127.38,127.36,0.03]
[1744587937226,18.83922517,127.38,127.36,0.03]
[1744587938329,6.1815,127.38,127.36,0.03]
[1744587938536,38.99169717,127.41,127.36,12.68772517]
[1744587938743,45.17319717,127.41,127.36,12.68772517]
[1744587938949,32.515472,127.41,127.37,12.65772517]
[1744587939249,45.17319717,127.41,127.36,12.68772517]
[1744587940244,45.17319717,127.41,127.37,6.2809]
[1744587941146,45.17319717,127.41,127.38,12.65772517]
[1744587941147,13.5815,127.41,127.38,12.65772517]
[1744587941347,6.1815,127.41,127.38,12.65772517]
[1744587941554,18.71264886,127.44,127.4,12.65772517]
[1744587941763,31.37037403,127.44,127.39,12.65772517]
[1744587942049,37.64787403,127.44,127.39,12.65772517]
[1744587942255,12.65772517,127.43,127.39,12.65772517]
[1744587942554,12.65772517,127.43,127.39,18.93742517]
[1744587943655,12.65772517,127.43,127.37,15.7022]
[1744587943957,12.65772517,127.43,127.39,12.65772517]
[1744587944130,31.37037403,127.44,127.39,12.65772517]
[1744587945657,31.37037403,127.44,127.37,15.7022]
[1744587945658,0.063,127.44,127.43,12.65772517]
[1744587946943,0.063,127.44,127.41,21.9762]
[1744587947144,0.063,127.44,127.43,12.65772517]
[1744587948950,0.063,127.44,127.42,12.65772517]
[1744587949138,0.063,127.44,127.42,6.278]
[1744587950862,0.063,127.44,127.41,12.65772517]
[1744587951042,0.063,127.44,127.4,12.65772517]
[1744587951934,0.063,127.44,127.41,12.65772517]
[1744587952247,0.063,127.44,127.42,12.65772517]
[1744587952756,0.063,127.44,127.43,12.65772517]
[1744587954044,0.063,127.44,127.43,18.93562517]
[1744587955661,0.063,127.44,127.43,21.81855142]
[1744587956360,0.063,127.44,127.43,18.93562517]
[1744587959652,0.063,127.44,127.43,6.2779]
[1744587959839,0.063,127.44,127.43,18.93562517]
[1744587960240,0.063,127.45,127.43,115.83785034]
[1744587960441,0.063,127.45,127.44,25.31545034]
[1744587960659,0.063,127.45,127.44,12.65772517]
[1744587961573,0.063,127.46,127.44,12.65772517]
[1744587961752,0.063,127.46,127.45,21.81575608]
[1744587961953,0.063,127.5,127.45,120.10815608]
[1744587962156,0.063,127.5,127.49,12.65772517]
[1744587963756,0.063,127.5,127.48,6.2753]
[1744587964079,0.063,127.5,127.48,18.93302517]
[1744587964268,0.063,127.5,127.49,12.65772517]
[1744587965853,0.063,127.5,127.49,18.93272517]
[1744587971772,0.063,127.5,127.46,6.2764]
[1744587972074,0.063,127.5,127.48,12.65772517]
[1744587972460,0.063,127.5,127.49,18.93272517]
[1744587973476,0.063,127.51,127.49,18.93272517]
[1744587973654,0.063,127.51,127.5,12.65772517]
[1744587974469,0.063,127.51,127.5,18.93222517]
[1744587977880,0.0001,127.51,127.5,19.07438674]
[1744587978083,0.0001,127.52,127.5,19.07438674]
[1744587978256,0.0001,127.52,127.51,12.65772517]
[1744587978670,0.0001,127.52,127.51,18.93172517]
[1744587984582,0.0001,127.52,127.51,101.67388674]
[1744587986584,0.063,127.56,127.52,18.79181043]
[1744587986786,0.063,127.56,127.55,12.65772517]
[1744587987173,0.063,127.56,127.55,8.07015674]
[1744587988483,0.063,127.56,127.55,14.34215674]
[1744587989191,0.063,127.56,127.55,18.88267672]
[1744587993590,0.063,127.57,127.55,19.02483829]
[1744587993792,0.063,127.57,127.56,12.61067672]
[1744587995694,0.063,127.57,127.56,18.88217672]
[1744587997609,0.0001,127.57,127.56,101.62433829]
[1744588001800,0.0001,127.58,127.57,0.14216157]
[1744588001983,0.0001,127.58,127.57,12.75283829]
[1744588002493,0.063,127.61,127.57,12.75283829]
[1744588002494,0.063,127.61,127.6,26.0]
[1744588002695,0.063,127.61,127.6,38.61067672]
[1744588004407,0.063,127.61,127.6,44.88017672]
[1744588005805,0.063,127.61,127.6,18.88017672]
[1744588006007,0.063,127.61,127.6,6.2695]
[1744588006706,0.063,127.61,127.6,18.88017672]
[1744588011187,0.063,127.61,127.6,14.33458977]
[1744588011594,0.0001,127.61,127.6,46.73711042]
[1744588011793,0.0001,127.61,127.6,14.47675134]
[1744588012195,0.0001,127.61,127.6,40.47675134]
[1744588012397,0.0001,127.61,127.6,40.33458977]
[1744588019417,0.0001,127.61,127.6,14.33458977]
[1744588019601,0.0001,127.61,127.56,15.6787]
[1744588019917,9.67298977,127.61,127.56,8.06508977]
[1744588020214,9.67298977,127.61,127.57,8.06508977]
[1744588020215,1.6079,127.61,127.57,8.06508977]
[1744588021423,1.6079,127.61,127.58,8.06508977]
[1744588021597,0.0001,127.61,127.6,8.06508977]
[1744588022099,0.0001,127.61,127.6,14.33458977]
[1744588024426,0.03,127.62,127.61,0.14216157]
[1744588024633,0.063,127.64,127.63,8.06508977]
[1744588025409,0.0001,127.64,127.63,109.74122334]
[1744588025617,0.0001,127.65,127.64,0.14216157]
[1744588025804,0.0001,127.65,127.64,8.20725134]
[1744588026206,0.0001,127.65,127.64,11.07498536]
[1744588026407,0.0001,127.65,127.64,17.34258536]
[1744588026639,0.0001,127.65,127.64,17.20042379]
[1744588027235,0.0001,127.65,127.64,21.72509151]
[1744588027411,0.0001,127.65,127.64,21.86725308]
[1744588027739,0.0001,127.65,127.64,21.72509151]
[1744588028339,0.0001,127.65,127.64,18.85735749]
[1744588028646,0.0001,127.65,127.64,6.2676]
[1744588028951,19.24515749,127.65,127.61,6.2691]
[1744588029243,12.58975749,127.62,127.57,6.271]
[1744588029443,12.58975749,127.62,127.57,18.86075749]
[1744588029631,12.58975749,127.63,127.58,12.58975749]
[1744588030522,12.58975749,127.63,127.59,6.27]
[1744588031348,12.58975749,127.62,127.57,12.58975749]
[1744588031521,12.58975749,127.62,127.57,18.86075749]
[1744588031935,12.87408063,127.63,127.58,12.58975749]
[1744588032745,12.87408063,127.63,127.58,18.85985749]
[1744588032942,31.23940635,127.64,127.59,12.58975749]
[1744588033445,12.58975749,127.63,127.58,18.85985749]
[1744588035548,37.50700635,127.64,127.59,12.58975749]
[1744588035845,12.58975749,127.63,127.58,18.85985749]
[1744588039217,18.85735749,127.64,127.58,18.85985749]
[1744588039419,25.589372,127.65,127.58,12.58975749]
[1744588039420,37.79182949,127.63,127.58,12.58975749]
[1744588040843,37.79182949,127.63,127.58,18.85995749]
[1744588042040,1.6227,127.6,127.56,18.86105749]
[1744588042239,6.4401,127.59,127.57,12.58975749]
[1744588042622,31.52372949,127.63,127.58,12.58975749]
[1744588042623,8.0628,127.63,127.58,12.58975749]
[1744588042821,8.0628,127.63,127.57,82.6]
[1744588042822,6.4401,127.63,127.62,12.58975749]
[1744588043041,6.4401,127.63,127.62,18.85835749]
[1744588043416,0.0001,127.65,127.62,18.85835749]
[1744588043623,0.0001,127.65,127.64,12.58975749]
[1744588043822,0.0001,127.65,127.62,18.85835749]
[1744588044021,0.0001,127.65,127.59,98.2749]
[1744588044022,0.0001,127.65,127.61,18.85875749]
[1744588044259,12.58985749,127.65,127.61,6.269]
[1744588044434,0.0001,127.65,127.61,18.85875749]
[1744588045445,0.0001,127.65,127.62,12.58975749]
[1744588046046,0.0001,127.65,127.61,18.85875749]